[Event "Titled Tuesday Blitz March 21 Late 2023"]
[White "Danielyan, Vahe"]
[Black "Sanal, Vahap"]
[WhiteFideId "13304828"]
[BlackFideId "6300545"]
[WhiteElo "2423"]
[BlackElo "2606"]
[Result "0-1"]
[Round "03"]
[TimeControl "180+2"]
[Date "2023.03.21"]
[WhiteClock "0:01:30"]
[BlackClock "0:02:20"]

1. d4 {[%clk 0:03:00]}  d5 {[%clk 0:02:56]} 2. c4 {[%clk 0:03:00]}  c6 {[%clk 0:02:54]} 3. Nf3 {[%clk 0:02:59]}  Nf6 {[%clk 0:02:55]} 4. e3 {[%clk 0:02:59]}  Bf5 {[%clk 0:02:55]} 5. Nbd2 {[%clk 0:02:59]}  e6 {[%clk 0:02:55]} 6. Be2 {[%clk 0:02:59]}  Nbd7 {[%clk 0:02:56]} 7. O-O {[%clk 0:02:59]}  Bd6 {[%clk 0:02:56]} 8. b3 {[%clk 0:03:00]}  O-O {[%clk 0:02:56]} 9. Bb2 {[%clk 0:03:00]}  h6 {[%clk 0:02:57]} 10. Re1 {[%clk 0:03:00]}  Qe7 {[%clk 0:02:55]} 11. a3 {[%clk 0:02:55]}  Ne4 {[%clk 0:02:53]} 12. Nxe4 {[%clk 0:02:54]}  Bxe4 {[%clk 0:02:54]} 13. b4 {[%clk 0:02:53]}  a5 {[%clk 0:02:54]} 14. c5 {[%clk 0:02:50]}  Bc7 {[%clk 0:02:54]} 15. b5 {[%clk 0:02:44]}  e5 {[%clk 0:02:54]} 16. dxe5 {[%clk 0:02:41]}  Bxf3 {[%clk 0:02:53]} 17. gxf3 {[%clk 0:02:38]}  Bxe5 {[%clk 0:02:54]} 18. Bxe5 {[%clk 0:02:36]}  Qxe5 {[%clk 0:02:54]} 19. Qd4 {[%clk 0:02:32]}  Qe7 {[%clk 0:02:52]} 20. Rac1 {[%clk 0:02:29]}  Rfe8 {[%clk 0:02:49]} 21. Bd3 {[%clk 0:02:27]}  Ne5 {[%clk 0:02:46]} 22. Be2 {[%clk 0:02:14]}  cxb5 {[%clk 0:02:28]} 23. Qxd5 {[%clk 0:02:13]}  Rad8 {[%clk 0:02:28]} 24. Qe4 {[%clk 0:02:13]}  Qg5+ {[%clk 0:02:28]} 25. Kh1 {[%clk 0:02:10]}  Nd3 {[%clk 0:02:29]} 26. Bxd3 {[%clk 0:01:58]}  Rxe4 {[%clk 0:02:28]} 27. Bxe4 {[%clk 0:01:59]}  Rd2 {[%clk 0:02:26]} 28. Red1 {[%clk 0:01:43]}  Rxf2 {[%clk 0:02:23]} 29. f4 {[%clk 0:01:37]}  Qh4 {[%clk 0:02:21]} 30. Bg2 {[%clk 0:01:37]}  g5 {[%clk 0:02:20]} 31. fxg5 {[%clk 0:01:32]}  hxg5 {[%clk 0:02:20]} 32. c6 {[%clk 0:01:29]}  bxc6 {[%clk 0:02:19]} 33. Rxc6 {[%clk 0:01:29]}  Rxg2 {[%clk 0:02:20]} 34. Rc8+ {[%clk 0:01:29]}  Kg7 {[%clk 0:02:20]} 35. Kxg2 {[%clk 0:01:30]}  Qg4+ {[%clk 0:02:20]} 0-1


[Site "https://www.chess.com"]

[Event "Titled Tuesday Blitz March 21 Late 2023"]
[White "Pakleza, Zbigniew"]
[Black "Domingo Nunez, Alejandro"]
[WhiteFideId "1119290"]
[BlackFideId "22245561"]
[WhiteElo "2410"]
[BlackElo "2230"]
[Result "1-0"]
[Round "03"]
[TimeControl "180+2"]
[Date "2023.03.21"]
[WhiteClock "0:00:08"]
[BlackClock "0:00:01"]

1. d4 {[%clk 0:03:00]}  g6 {[%clk 0:03:00]} 2. Nf3 {[%clk 0:03:00]}  Bg7 {[%clk 0:03:00]} 3. Bf4 {[%clk 0:03:00]}  Nf6 {[%clk 0:02:59]} 4. e3 {[%clk 0:03:00]}  b6 {[%clk 0:02:59]} 5. h3 {[%clk 0:03:00]}  Bb7 {[%clk 0:02:59]} 6. Be2 {[%clk 0:03:00]}  O-O {[%clk 0:03:00]} 7. O-O {[%clk 0:03:00]}  d6 {[%clk 0:03:00]} 8. Nbd2 {[%clk 0:02:59]}  Nbd7 {[%clk 0:03:01]} 9. c3 {[%clk 0:03:00]}  Ne4 {[%clk 0:02:57]} 10. Bh2 {[%clk 0:02:59]}  e5 {[%clk 0:02:57]} 11. a4 {[%clk 0:02:59]}  a5 {[%clk 0:02:56]} 12. Nxe4 {[%clk 0:02:54]}  Bxe4 {[%clk 0:02:57]} 13. Nd2 {[%clk 0:02:55]}  Bb7 {[%clk 0:02:57]} 14. Bf3 {[%clk 0:02:55]}  Qc8 {[%clk 0:02:56]} 15. Qb3 {[%clk 0:02:46]}  Bxf3 {[%clk 0:02:23]} 16. Nxf3 {[%clk 0:02:47]}  Qb7 {[%clk 0:02:23]} 17. Rfd1 {[%clk 0:02:45]}  Rae8 {[%clk 0:02:22]} 18. Qb5 {[%clk 0:02:43]}  Re7 {[%clk 0:02:18]} 19. b4 {[%clk 0:02:36]}  Qa8 {[%clk 0:01:18]} 20. Rab1 {[%clk 0:02:01]}  Rb8 {[%clk 0:01:17]} 21. Bg3 {[%clk 0:01:53]}  h6 {[%clk 0:01:11]} 22. Qc4 {[%clk 0:01:26]}  e4 {[%clk 0:00:20]} 23. Nd2 {[%clk 0:01:25]}  Nf6 {[%clk 0:00:21]} 24. Qb5 {[%clk 0:01:15]}  axb4 {[%clk 0:00:21]} 25. cxb4 {[%clk 0:01:04]}  Nd5 {[%clk 0:00:21]} 26. Rdc1 {[%clk 0:00:59]}  Rc8 {[%clk 0:00:21]} 27. a5 {[%clk 0:00:52]}  c6 {[%clk 0:00:20]} 28. Qe2 {[%clk 0:00:35]}  bxa5 {[%clk 0:00:13]} 29. bxa5 {[%clk 0:00:35]}  Qxa5 {[%clk 0:00:12]} 30. Nc4 {[%clk 0:00:36]}  Qa6 {[%clk 0:00:11]} 31. Ra1 {[%clk 0:00:32]}  Qb5 {[%clk 0:00:10]} 32. Ra5 {[%clk 0:00:22]}  Qb3 {[%clk 0:00:04]} 33. Nxd6 {[%clk 0:00:22]}  Rd8 {[%clk 0:00:03]} 34. Rac5 {[%clk 0:00:20]}  Nb4 {[%clk 0:00:03]} 35. Qc4 {[%clk 0:00:14]}  Qb2 {[%clk 0:00:02]} 36. Qc3 {[%clk 0:00:08]}  Qxc3 {[%clk 0:00:01]} 37. R1xc3 {[%clk 0:00:08]}  Nd3 {[%clk 0:00:01]} 38. Rxc6 {[%clk 0:00:08]} 1-0


[Site "https://www.chess.com"]

[Event "Titled Tuesday Blitz March 21 Late 2023"]
[White "Wagner, Dennis"]
[Black "ritanovikova"]
[WhiteFideId "24650684"]
[WhiteElo "2470"]
[BlackElo "2207"]
[Result "1-0"]
[Round "03"]
[TimeControl "180+2"]
[Date "2023.03.21"]
[WhiteClock "0:01:07"]
[BlackClock "0:00:19"]

1. d4 {[%clk 0:03:00]}  Nf6 {[%clk 0:02:59]} 2. c4 {[%clk 0:03:00]}  e6 {[%clk 0:02:59]} 3. Nf3 {[%clk 0:02:59]}  d5 {[%clk 0:02:59]} 4. cxd5 {[%clk 0:02:56]}  exd5 {[%clk 0:02:59]} 5. Nc3 {[%clk 0:02:57]}  c6 {[%clk 0:02:44]} 6. Bf4 {[%clk 0:02:54]}  Bd6 {[%clk 0:02:43]} 7. Bxd6 {[%clk 0:02:54]}  Qxd6 {[%clk 0:02:44]} 8. e3 {[%clk 0:02:51]}  O-O {[%clk 0:02:44]} 9. Qb3 {[%clk 0:02:44]}  b6 {[%clk 0:02:37]} 10. Rc1 {[%clk 0:02:41]}  Ba6 {[%clk 0:02:31]} 11. Bxa6 {[%clk 0:02:39]}  Nxa6 {[%clk 0:02:32]} 12. O-O {[%clk 0:02:40]}  Nc7 {[%clk 0:02:04]} 13. Rfd1 {[%clk 0:02:39]}  Ne6 {[%clk 0:02:02]} 14. h3 {[%clk 0:02:36]}  h6 {[%clk 0:02:01]} 15. Rc2 {[%clk 0:01:58]}  Ng5 {[%clk 0:01:59]} 16. Ne2 {[%clk 0:01:40]}  Nxf3+ {[%clk 0:01:57]} 17. gxf3 {[%clk 0:01:41]}  Qe6 {[%clk 0:01:54]} 18. Kg2 {[%clk 0:01:40]}  Nh7 {[%clk 0:01:49]} 19. Nf4 {[%clk 0:01:36]}  Qd6 {[%clk 0:01:46]} 20. Rdc1 {[%clk 0:01:33]}  Rfc8 {[%clk 0:01:39]} 21. Nxd5 {[%clk 0:01:23]}  Qg6+ {[%clk 0:01:22]} 22. Kf1 {[%clk 0:01:23]}  Qd6 {[%clk 0:00:39]} 23. Rxc6 {[%clk 0:01:22]}  Rxc6 {[%clk 0:00:37]} 24. Rxc6 {[%clk 0:01:23]}  Qh2 {[%clk 0:00:35]} 25. Ne7+ {[%clk 0:01:12]}  Kh8 {[%clk 0:00:33]} 26. Qxf7 {[%clk 0:01:08]}  Qxh3+ {[%clk 0:00:20]} 27. Ke2 {[%clk 0:01:08]}  Nf8 {[%clk 0:00:19]} 28. Qg8# {[%clk 0:01:07]} 1-0


[Site "https://www.chess.com"]

[Event "Titled Tuesday Blitz March 21 Late 2023"]
[White "Gharibyan, Mamikon"]
[Black "Korkmaz, Necmettin"]
[WhiteFideId "13308300"]
[BlackFideId "6303285"]
[WhiteElo "2445"]
[BlackElo "2097"]
[Result "1-0"]
[Round "03"]
[TimeControl "180+2"]
[Date "2023.03.21"]
[WhiteClock "0:00:59"]
[BlackClock "0:00:30"]

1. Nf3 {[%clk 0:03:00]}  d5 {[%clk 0:02:59]} 2. g3 {[%clk 0:03:00]}  Nf6 {[%clk 0:02:58]} 3. Bg2 {[%clk 0:02:57]}  g6 {[%clk 0:02:56]} 4. b3 {[%clk 0:02:51]}  Bg7 {[%clk 0:02:55]} 5. Bb2 {[%clk 0:02:51]}  O-O {[%clk 0:02:55]} 6. c4 {[%clk 0:02:51]}  c6 {[%clk 0:02:48]} 7. O-O {[%clk 0:02:51]}  Re8 {[%clk 0:02:47]} 8. a4 {[%clk 0:02:48]}  Nbd7 {[%clk 0:02:47]} 9. d4 {[%clk 0:02:47]}  Ne4 {[%clk 0:02:45]} 10. a5 {[%clk 0:02:45]}  Ndf6 {[%clk 0:02:34]} 11. Ne5 {[%clk 0:02:40]}  Bf5 {[%clk 0:02:30]} 12. a6 {[%clk 0:02:36]}  bxa6 {[%clk 0:02:21]} 13. Nxc6 {[%clk 0:02:25]}  Qb6 {[%clk 0:02:20]} 14. Na5 {[%clk 0:02:22]}  dxc4 {[%clk 0:02:15]} 15. Nxc4 {[%clk 0:02:23]}  Qb7 {[%clk 0:02:05]} 16. Nbd2 {[%clk 0:02:18]}  Rad8 {[%clk 0:01:55]} 17. Nf3 {[%clk 0:02:07]}  Rb8 {[%clk 0:01:48]} 18. Na5 {[%clk 0:02:01]}  Qb5 {[%clk 0:01:47]} 19. Ne5 {[%clk 0:01:58]}  h5 {[%clk 0:01:39]} 20. f3 {[%clk 0:01:43]}  Ng5 {[%clk 0:01:33]} 21. h4 {[%clk 0:01:34]}  Ngh7 {[%clk 0:01:21]} 22. e4 {[%clk 0:01:32]}  Bc8 {[%clk 0:01:20]} 23. Nec6 {[%clk 0:01:27]}  Rb6 {[%clk 0:01:15]} 24. d5 {[%clk 0:01:24]}  Nd7 {[%clk 0:01:08]} 25. Bxg7 {[%clk 0:01:22]}  Kxg7 {[%clk 0:01:08]} 26. Qd4+ {[%clk 0:01:21]}  Nhf6 {[%clk 0:01:07]} 27. Rfc1 {[%clk 0:01:18]}  e5 {[%clk 0:01:02]} 28. Qf2 {[%clk 0:01:14]}  Bb7 {[%clk 0:00:59]} 29. Bf1 {[%clk 0:01:13]}  Bxc6 {[%clk 0:00:48]} 30. Bxb5 {[%clk 0:01:12]}  Bxb5 {[%clk 0:00:49]} 31. Rc7 {[%clk 0:01:12]}  Ra8 {[%clk 0:00:34]} 32. Nc4 {[%clk 0:01:11]}  Rbb8 {[%clk 0:00:31]} 33. Rxa7 {[%clk 0:01:06]}  Rxa7 {[%clk 0:00:30]} 34. Qxa7 {[%clk 0:01:07]}  Rc8 {[%clk 0:00:30]} 35. Qe3 {[%clk 0:00:59]}  Bxc4 {[%clk 0:00:29]} 36. bxc4 {[%clk 0:01:00]}  Rxc4 {[%clk 0:00:30]} 37. Rxa6 {[%clk 0:01:00]}  Nc5 {[%clk 0:00:31]} 38. Rc6 {[%clk 0:01:00]}  Rc1+ {[%clk 0:00:30]} 39. Qxc1 {[%clk 0:00:59]} 1-0


[Site "https://www.chess.com"]

[Event "Titled Tuesday Blitz March 21 Late 2023"]
[White "Graif, William"]
[Black "Stoyanov, Tsvetan"]
[WhiteFideId "2609835"]
[BlackFideId "2917173"]
[WhiteElo "2205"]
[BlackElo "2349"]
[Result "0-1"]
[Round "03"]
[TimeControl "180+2"]
[Date "2023.03.21"]
[WhiteClock "0:00:37"]
[BlackClock "0:00:40"]

1. e4 {[%clk 0:02:45]}  g6 {[%clk 0:02:59]} 2. Nc3 {[%clk 0:02:44]}  Bg7 {[%clk 0:02:59]} 3. Bc4 {[%clk 0:02:34]}  d6 {[%clk 0:02:57]} 4. d3 {[%clk 0:02:30]}  Nf6 {[%clk 0:02:56]} 5. f4 {[%clk 0:02:29]}  a6 {[%clk 0:02:47]} 6. a4 {[%clk 0:02:16]}  O-O {[%clk 0:02:46]} 7. Nf3 {[%clk 0:02:14]}  c6 {[%clk 0:02:27]} 8. Ba2 {[%clk 0:02:09]}  Qc7 {[%clk 0:02:16]} 9. O-O {[%clk 0:02:08]}  Nbd7 {[%clk 0:02:13]} 10. Qe1 {[%clk 0:02:07]}  e6 {[%clk 0:01:54]} 11. Qh4 {[%clk 0:02:05]}  b5 {[%clk 0:01:53]} 12. f5 {[%clk 0:01:56]}  d5 {[%clk 0:01:28]} 13. Bh6 {[%clk 0:01:34]}  Ne5 {[%clk 0:01:12]} 14. Bxg7 {[%clk 0:01:13]}  Kxg7 {[%clk 0:01:09]} 15. fxe6 {[%clk 0:00:57]}  fxe6 {[%clk 0:00:56]} 16. Ng5 {[%clk 0:00:56]}  h6 {[%clk 0:00:50]} 17. Nh3 {[%clk 0:00:50]}  Neg4 {[%clk 0:00:45]} 18. Rf3 {[%clk 0:00:40]}  Qxh2+ {[%clk 0:00:43]} 19. Kf1 {[%clk 0:00:38]}  Qh1+ {[%clk 0:00:42]} 20. Ke2 {[%clk 0:00:37]}  Qxa1 {[%clk 0:00:40]} 0-1


[Site "https://www.chess.com"]

[Event "Titled Tuesday Blitz March 21 Late 2023"]
[White "Carbone, Diego"]
[Black "Kuznetsov, Felix"]
[WhiteFideId "3002179"]
[BlackFideId "34147990"]
[WhiteElo "2266"]
[BlackElo "2235"]
[Result "0-1"]
[Round "03"]
[TimeControl "180+2"]
[Date "2023.03.21"]
[WhiteClock "0:00:14"]
[BlackClock "0:00:41"]

1. d4 {[%clk 0:03:00]}  Nf6 {[%clk 0:03:00]} 2. c4 {[%clk 0:03:01]}  e6 {[%clk 0:02:58]} 3. Nc3 {[%clk 0:03:01]}  Bb4 {[%clk 0:02:58]} 4. Qc2 {[%clk 0:03:01]}  O-O {[%clk 0:02:58]} 5. e4 {[%clk 0:03:00]}  d5 {[%clk 0:02:58]} 6. e5 {[%clk 0:03:01]}  Ne4 {[%clk 0:02:57]} 7. Bd3 {[%clk 0:03:01]}  c5 {[%clk 0:02:57]} 8. Nf3 {[%clk 0:03:01]}  cxd4 {[%clk 0:02:56]} 9. Nxd4 {[%clk 0:03:02]}  Nd7 {[%clk 0:02:56]} 10. Bf4 {[%clk 0:03:01]}  Ndc5 {[%clk 0:02:42]} 11. O-O {[%clk 0:02:58]}  Bxc3 {[%clk 0:02:43]} 12. bxc3 {[%clk 0:02:57]}  Nxd3 {[%clk 0:02:43]} 13. Qxd3 {[%clk 0:02:58]}  Qc7 {[%clk 0:02:43]} 14. cxd5 {[%clk 0:02:45]}  exd5 {[%clk 0:02:44]} 15. Rac1 {[%clk 0:02:23]}  Be6 {[%clk 0:02:40]} 16. c4 {[%clk 0:02:22]}  Nc5 {[%clk 0:02:39]} 17. Qe3 {[%clk 0:01:52]}  dxc4 {[%clk 0:02:38]} 18. Nxe6 {[%clk 0:01:52]}  Nxe6 {[%clk 0:02:39]} 19. Bg3 {[%clk 0:01:44]}  b5 {[%clk 0:02:38]} 20. Rfd1 {[%clk 0:01:40]}  Rfd8 {[%clk 0:02:34]} 21. Rd6 {[%clk 0:01:40]}  Qc5 {[%clk 0:02:22]} 22. Qd2 {[%clk 0:01:32]}  b4 {[%clk 0:02:03]} 23. Rd1 {[%clk 0:01:24]}  Rxd6 {[%clk 0:01:56]} 24. exd6 {[%clk 0:01:25]}  c3 {[%clk 0:01:54]} 25. Qd3 {[%clk 0:01:23]}  Rd8 {[%clk 0:01:25]} 26. h4 {[%clk 0:00:57]}  h5 {[%clk 0:01:18]} 27. Qa6 {[%clk 0:00:39]}  c2 {[%clk 0:01:00]} 28. Rc1 {[%clk 0:00:39]}  Nd4 {[%clk 0:00:54]} 29. Qd3 {[%clk 0:00:32]}  Qc3 {[%clk 0:00:54]} 30. Qe4 {[%clk 0:00:23]}  Qd2 {[%clk 0:00:47]} 31. Kh2 {[%clk 0:00:16]}  Qxc1 {[%clk 0:00:44]} 32. Qxd4 {[%clk 0:00:14]}  Qd1 {[%clk 0:00:41]} 0-1


[Site "https://www.chess.com"]

[Event "Titled Tuesday Blitz March 21 Late 2023"]
[White "Adewumi, Tanitoluwa"]
[Black "angelgab3"]
[WhiteFideId "30966396"]
[WhiteElo "2753"]
[BlackElo "2515"]
[Result "1-0"]
[Round "03"]
[TimeControl "180+2"]
[Date "2023.03.21"]
[WhiteClock "0:00:08"]
[BlackClock "0:00:09"]

1. e4 {[%clk 0:02:54]}  c5 {[%clk 0:02:59]} 2. Nf3 {[%clk 0:02:53]}  d6 {[%clk 0:03:00]} 3. Bb5+ {[%clk 0:02:53]}  Nd7 {[%clk 0:03:00]} 4. c3 {[%clk 0:02:52]}  a6 {[%clk 0:03:01]} 5. Bd3 {[%clk 0:02:52]}  Ngf6 {[%clk 0:03:01]} 6. Bc2 {[%clk 0:02:52]}  e5 {[%clk 0:03:02]} 7. d4 {[%clk 0:02:52]}  Be7 {[%clk 0:03:03]} 8. O-O {[%clk 0:02:51]}  Kf8 {[%clk 0:03:03]} 9. dxe5 {[%clk 0:02:51]}  dxe5 {[%clk 0:03:03]} 10. c4 {[%clk 0:02:51]}  h6 {[%clk 0:03:03]} 11. Nc3 {[%clk 0:02:51]}  g6 {[%clk 0:03:03]} 12. Nd5 {[%clk 0:02:52]}  Kg7 {[%clk 0:03:04]} 13. Be3 {[%clk 0:02:51]}  Re8 {[%clk 0:03:04]} 14. Ba4 {[%clk 0:02:50]}  Nxe4 {[%clk 0:02:50]} 15. Re1 {[%clk 0:02:50]}  Nef6 {[%clk 0:02:46]} 16. Qd2 {[%clk 0:02:30]}  h5 {[%clk 0:02:24]} 17. Bh6+ {[%clk 0:02:28]}  Kg8 {[%clk 0:02:24]} 18. Rad1 {[%clk 0:02:23]}  e4 {[%clk 0:01:48]} 19. Ng5 {[%clk 0:01:57]}  b5 {[%clk 0:01:07]} 20. cxb5 {[%clk 0:01:23]}  Nb6 {[%clk 0:01:07]} 21. Nxb6 {[%clk 0:01:07]}  Qxb6 {[%clk 0:01:08]} 22. Bb3 {[%clk 0:01:01]}  Be6 {[%clk 0:00:45]} 23. Nxe6 {[%clk 0:00:49]}  fxe6 {[%clk 0:00:45]} 24. bxa6 {[%clk 0:00:47]}  Qxa6 {[%clk 0:00:42]} 25. Qc3 {[%clk 0:00:21]}  Rad8 {[%clk 0:00:30]} 26. Rxd8 {[%clk 0:00:20]}  Rxd8 {[%clk 0:00:30]} 27. Qe5 {[%clk 0:00:17]}  Kf7 {[%clk 0:00:28]} 28. h3 {[%clk 0:00:17]}  Qd6 {[%clk 0:00:25]} 29. Qc3 {[%clk 0:00:14]}  Qd4 {[%clk 0:00:25]} 30. Qa5 {[%clk 0:00:14]}  c4 {[%clk 0:00:19]} 31. Rd1 {[%clk 0:00:06]}  Qc5 {[%clk 0:00:10]} 32. Qxc5 {[%clk 0:00:05]}  Rxd1+ {[%clk 0:00:10]} 33. Bxd1 {[%clk 0:00:06]}  Bxc5 {[%clk 0:00:11]} 34. Be3 {[%clk 0:00:06]}  Bxe3 {[%clk 0:00:11]} 35. fxe3 {[%clk 0:00:07]}  Nd5 {[%clk 0:00:12]} 36. Kf2 {[%clk 0:00:08]}  Nb4 {[%clk 0:00:12]} 37. b3 {[%clk 0:00:06]}  Nxa2 {[%clk 0:00:12]} 38. bxc4 {[%clk 0:00:07]}  Nc3 {[%clk 0:00:12]} 39. Bc2 {[%clk 0:00:07]}  Ke7 {[%clk 0:00:12]} 40. Ke1 {[%clk 0:00:08]}  Kd6 {[%clk 0:00:10]} 41. Kd2 {[%clk 0:00:08]}  Na2 {[%clk 0:00:10]} 42. Bxe4 {[%clk 0:00:08]}  g5 {[%clk 0:00:11]} 43. Bg6 {[%clk 0:00:09]}  h4 {[%clk 0:00:11]} 44. Kd3 {[%clk 0:00:08]}  Nb4+ {[%clk 0:00:10]} 45. Kd4 {[%clk 0:00:09]}  Nc2+ {[%clk 0:00:09]} 46. Bxc2 {[%clk 0:00:08]} 1-0


[Site "https://www.chess.com"]

[Event "Titled Tuesday Blitz March 21 Late 2023"]
[White "Mahdavi, Reza"]
[Black "Miszler, Levente"]
[WhiteFideId "12595926"]
[BlackFideId "763276"]
[WhiteElo "2208"]
[BlackElo "2176"]
[Result "1-0"]
[Round "03"]
[TimeControl "180+2"]
[Date "2023.03.21"]
[WhiteClock "0:02:30"]
[BlackClock "0:02:00"]

1. Nf3 {[%clk 0:03:00]}  Nf6 {[%clk 0:02:58]} 2. g3 {[%clk 0:02:57]}  e6 {[%clk 0:02:58]} 3. Bg2 {[%clk 0:02:55]}  d5 {[%clk 0:02:58]} 4. O-O {[%clk 0:02:55]}  Be7 {[%clk 0:02:59]} 5. d4 {[%clk 0:02:55]}  O-O {[%clk 0:03:00]} 6. c4 {[%clk 0:02:56]}  dxc4 {[%clk 0:02:59]} 7. Qc2 {[%clk 0:02:57]}  a6 {[%clk 0:02:59]} 8. a4 {[%clk 0:02:58]}  Bd7 {[%clk 0:02:59]} 9. Qxc4 {[%clk 0:02:58]}  Bc6 {[%clk 0:02:59]} 10. Bg5 {[%clk 0:02:59]}  Bd5 {[%clk 0:02:59]} 11. Qc2 {[%clk 0:02:59]}  Be4 {[%clk 0:02:59]} 12. Qc1 {[%clk 0:03:00]}  h6 {[%clk 0:02:57]} 13. Bxf6 {[%clk 0:03:01]}  Bxf6 {[%clk 0:02:58]} 14. Nc3 {[%clk 0:03:01]}  Bxf3 {[%clk 0:02:57]} 15. Bxf3 {[%clk 0:03:02]}  c6 {[%clk 0:02:57]} 16. e3 {[%clk 0:03:03]}  a5 {[%clk 0:02:57]} 17. Ne4 {[%clk 0:03:02]}  Na6 {[%clk 0:02:55]} 18. Qc4 {[%clk 0:03:01]}  Nb4 {[%clk 0:02:55]} 19. Rfd1 {[%clk 0:02:53]}  Be7 {[%clk 0:02:54]} 20. Rd2 {[%clk 0:02:53]}  Qc7 {[%clk 0:02:52]} 21. Rad1 {[%clk 0:02:53]}  Rfd8 {[%clk 0:02:50]} 22. Nc3 {[%clk 0:02:52]}  Bf6 {[%clk 0:02:46]} 23. h4 {[%clk 0:02:50]}  Qe7 {[%clk 0:02:42]} 24. Ne4 {[%clk 0:02:49]}  Nd5 {[%clk 0:02:32]} 25. Kg2 {[%clk 0:02:47]}  Rab8 {[%clk 0:02:24]} 26. Nc5 {[%clk 0:02:47]}  Rdc8 {[%clk 0:02:18]} 27. e4 {[%clk 0:02:47]}  Nb4 {[%clk 0:02:15]} 28. e5 {[%clk 0:02:47]}  b6 {[%clk 0:02:10]} 29. exf6 {[%clk 0:02:46]}  Qxf6 {[%clk 0:02:11]} 30. Ne4 {[%clk 0:02:46]}  Qg6 {[%clk 0:02:11]} 31. Nc3 {[%clk 0:02:41]}  b5 {[%clk 0:02:11]} 32. axb5 {[%clk 0:02:40]}  cxb5 {[%clk 0:02:12]} 33. Qe2 {[%clk 0:02:41]}  Qf6 {[%clk 0:02:09]} 34. d5 {[%clk 0:02:39]}  exd5 {[%clk 0:02:08]} 35. Nxd5 {[%clk 0:02:40]}  Nxd5 {[%clk 0:02:09]} 36. Bxd5 {[%clk 0:02:37]}  a4 {[%clk 0:02:09]} 37. Ba2 {[%clk 0:02:36]}  b4 {[%clk 0:02:09]} 38. Bc4 {[%clk 0:02:36]}  Re8 {[%clk 0:02:01]} 39. Qf3 {[%clk 0:02:35]}  Qb6 {[%clk 0:02:00]} 40. Bxf7+ {[%clk 0:02:30]} 1-0


[Site "https://www.chess.com"]

[Event "Titled Tuesday Blitz March 21 Late 2023"]
[White "Manukyan, Sargis A."]
[Black "Kozin, Yuri"]
[WhiteFideId "13303970"]
[BlackFideId "4129920"]
[WhiteElo "2187"]
[BlackElo "2499"]
[Result "1-0"]
[Round "03"]
[TimeControl "180+2"]
[Date "2023.03.21"]
[WhiteClock "0:01:15"]
[BlackClock "0:00:18"]

1. d4 {[%clk 0:03:00]}  d5 {[%clk 0:02:59]} 2. c4 {[%clk 0:03:01]}  c6 {[%clk 0:02:59]} 3. Nc3 {[%clk 0:03:02]}  Nf6 {[%clk 0:03:00]} 4. e3 {[%clk 0:03:02]}  Bf5 {[%clk 0:02:59]} 5. Nf3 {[%clk 0:03:03]}  e6 {[%clk 0:02:59]} 6. Bd3 {[%clk 0:03:03]}  Bg6 {[%clk 0:02:58]} 7. O-O {[%clk 0:03:03]}  Be7 {[%clk 0:02:58]} 8. Ne5 {[%clk 0:03:03]}  Bxd3 {[%clk 0:02:56]} 9. Qxd3 {[%clk 0:03:03]}  Nbd7 {[%clk 0:02:57]} 10. Nf3 {[%clk 0:03:03]}  O-O {[%clk 0:02:56]} 11. e4 {[%clk 0:03:03]}  dxe4 {[%clk 0:02:57]} 12. Nxe4 {[%clk 0:03:04]}  Nxe4 {[%clk 0:02:57]} 13. Qxe4 {[%clk 0:03:05]}  Nf6 {[%clk 0:02:57]} 14. Qe2 {[%clk 0:03:04]}  c5 {[%clk 0:02:52]} 15. Be3 {[%clk 0:03:01]}  cxd4 {[%clk 0:02:52]} 16. Bxd4 {[%clk 0:03:02]}  Qc7 {[%clk 0:02:46]} 17. b3 {[%clk 0:03:02]}  Nd7 {[%clk 0:02:42]} 18. h3 {[%clk 0:03:00]}  Bf6 {[%clk 0:02:42]} 19. Rfd1 {[%clk 0:02:59]}  Bxd4 {[%clk 0:02:42]} 20. Rxd4 {[%clk 0:03:00]}  Nf6 {[%clk 0:02:41]} 21. Rad1 {[%clk 0:03:01]}  Rad8 {[%clk 0:02:40]} 22. Qd2 {[%clk 0:03:01]}  Rxd4 {[%clk 0:02:39]} 23. Qxd4 {[%clk 0:03:02]}  a6 {[%clk 0:02:36]} 24. Qd6 {[%clk 0:03:02]}  Qxd6 {[%clk 0:02:30]} 25. Rxd6 {[%clk 0:03:03]}  Rc8 {[%clk 0:02:30]} 26. g4 {[%clk 0:03:01]}  h6 {[%clk 0:02:29]} 27. Ne5 {[%clk 0:02:57]}  Kf8 {[%clk 0:02:27]} 28. f4 {[%clk 0:02:50]}  Ke7 {[%clk 0:02:23]} 29. Rd4 {[%clk 0:02:50]}  Rc5 {[%clk 0:02:06]} 30. Kf2 {[%clk 0:02:39]}  g5 {[%clk 0:02:06]} 31. fxg5 {[%clk 0:02:30]}  hxg5 {[%clk 0:02:06]} 32. Nf3 {[%clk 0:02:28]}  a5 {[%clk 0:02:03]} 33. h4 {[%clk 0:02:24]}  gxh4 {[%clk 0:02:00]} 34. g5 {[%clk 0:02:25]}  Nd7 {[%clk 0:01:56]} 35. Rxh4 {[%clk 0:02:25]}  b5 {[%clk 0:01:42]} 36. Ke3 {[%clk 0:02:21]}  bxc4 {[%clk 0:01:37]} 37. bxc4 {[%clk 0:02:22]}  Ne5 {[%clk 0:01:31]} 38. Nd2 {[%clk 0:02:08]}  Ng6 {[%clk 0:01:19]} 39. Rg4 {[%clk 0:02:09]}  Ne5 {[%clk 0:01:16]} 40. Re4 {[%clk 0:02:06]}  Ng6 {[%clk 0:01:16]} 41. Nf3 {[%clk 0:02:06]}  a4 {[%clk 0:01:05]} 42. Kd3 {[%clk 0:02:05]}  Rf5 {[%clk 0:01:04]} 43. Ke3 {[%clk 0:02:00]}  Rc5 {[%clk 0:01:03]} 44. Rd4 {[%clk 0:01:59]}  Ne5 {[%clk 0:00:59]} 45. Nd2 {[%clk 0:01:49]}  Nc6 {[%clk 0:00:56]} 46. Rh4 {[%clk 0:01:41]}  Rxg5 {[%clk 0:00:50]} 47. Ne4 {[%clk 0:01:40]}  Rg2 {[%clk 0:00:48]} 48. a3 {[%clk 0:01:40]}  Ra2 {[%clk 0:00:48]} 49. Kf4 {[%clk 0:01:24]}  Rxa3 {[%clk 0:00:47]} 50. Rh8 {[%clk 0:01:25]}  f5 {[%clk 0:00:39]} 51. Rh7+ {[%clk 0:01:20]}  Kd8 {[%clk 0:00:38]} 52. Nc5 {[%clk 0:01:19]}  Rc3 {[%clk 0:00:34]} 53. Nxe6+ {[%clk 0:01:19]}  Ke8 {[%clk 0:00:34]} 54. Kxf5 {[%clk 0:01:15]}  Rxc4 {[%clk 0:00:27]} 55. Kf6 {[%clk 0:01:15]}  Nd4 {[%clk 0:00:18]} 56. Re7# {[%clk 0:01:15]} 1-0


[Site "https://www.chess.com"]